Cogmind - Beta 10.2 *** ADVENTURER MODE // 2021.02.02 @ 16:07:46 Player: Chicken Result: Destroyed by S-10 Pest with Light Assault Rifle Performance ------------- Evolutions (1) 500 Regions Visited (2) 400 Robots Destroyed (35) 175 Value Destroyed (812) 812 Prototype IDs (0) 0 Alien Tech Used (0) 0 Bonus (0) 0 TOTAL SCORE: 1887 Bonus ------- None Cogmind --------- Core Integrity 0/400 Matter 300/300 Energy 56/100 System Corruption 1% Temperature Cool (0) Movement Core (100) Ox1 Location -9/Materials Parts ------- > --- POWER (2) -------- (None) > --- PROPULSION (3) --- (None) > --- UTILITY (2) ------ (None) > --- WEAPON (2) ------- Heavy Mace Heavy Mace > --- INVENTORY (4) ---- Aluminum Leg Heavy Mace Heavy Mace Peak State ------------ > --- POWER ------------ Light Ion Engine Light Nuclear Core > --- PROPULSION ------- Improved Aluminum Leg Improved Aluminum Leg Improved Aluminum Leg > --- UTILITY ---------- Light Armor Plating Light Armor Plating > --- WEAPON ----------- Heavy Mace Heavy Mace > --- INVENTORY -------- Improved Aluminum Leg Shield Generator Heavy Mace Heavy Mace [Rating: 19] Favorites ----------- Power Light Nuclear Core Engine Light Ion Engine Power Core Light Nuclear Core Propulsion Improved Aluminum Leg Leg Improved Aluminum Leg Wheel Wheel Utility Light Armor Plating Device Shield Generator Protection Light Armor Plating Weapon Heavy Mace Energy Gun EM Pulse Gun Energy Cannon Light EM Pulse Cannon Ballistic Gun Assault Rifle Launcher Grenade Launcher Special Weapon Mining Laser Impact Weapon Heavy Mace Build | -11 -10 -9 ------- Run | Scr Mat Mat Slots Evolved 2 | . . 2 Power 1 | . . 1 Propulsion 1 | . . 1 Utility . | . . . Weapon . | . . . Parts Attached 33 | 7 12 14 Power 5 | 1 1 3 Engine 4 | 1 . 3 Core 1 | . 1 . Reactor . | . . . Propulsion 12 | 2 4 6 Treads . | . . . Leg 10 | . 4 6 Wheel 2 | 2 . . Hover . | . . . Flight . | . . . Utility 3 | . 2 1 Device 1 | . . 1 Storage . | . . . Processor . | . . . Hackware . | . . . Protection 2 | . 2 . Artifact . | . . . Weapon 13 | 4 5 4 Energy Gun 2 | 2 . . Energy Cannon 1 | . 1 . Ballistic Gun 1 | . 1 . Ballistic Cannon . | . . . Launcher 1 | . 1 . Special Weapon 3 | 2 1 . Impact Weapon 5 | . 1 4 Slashing Weapon . | . . . Piercing Weapon . | . . . Special Melee Weapon . | . . . Unidentified Prototypes . | . . . Parts Lost 18 | . 6 12 Power 4 | . 1 3 Propulsion 8 | . 2 6 Utility 3 | . . 3 Weapon 3 | . 3 . Highest Loss Streak 6 | . 6 5 Average Slot Usage (%) 76 | . 71 79 Engine 6 | . 3 9 Core 7 | . 9 5 Leg 24 | . 18 29 Wheel 3 | . 7 . Device 1 | . . 3 Protection 8 | . 7 9 Energy Cannon 2 | . 2 1 Ballistic Gun 1 | . 3 . Launcher 2 | . 7 . Special Weapon 2 | . 6 . Impact Weapon 13 | . 3 20 Naked Turns 3 | . 3 . Heaviest Build 20 | 6 17 20 Greatest Support 39 | 20 26 39 Greatest Overweight (x) 2 | . 2 2 Average Overweight (x) . | . . . Largest Inventory Capacity 4 | 4 4 4 Average Capacity 4 | 4 4 4 Most Carried 4 | 4 4 4 Average Carried 3 | . 3 3 Final Capacity 4 | 4 4 4 Final Carried 4 | 2 4 3 Class Distribution -------------------- 100% | Mutant Dominant Class ---------------- Mutant | -10/Materials Mutant | -9/Materials Resources | -11 -10 -9 ----------- Run | Scr Mat Mat Matter Collected 611 | 270 34 307 Remotely . | . . . Salvage Created 906 | 72 152 682 Parts 53 | 7 15 31 Haulers Intercepted . | . . . Recyclers Shooed 1 | . 1 . Parts Field Recycled . | . . . Retrieved Matter . | . . . Parts Self-Destructed . | . . . Prevented . | . . . Kills | -11 -10 -9 ------- Run | Scr Mat Mat Combat Hostiles Destroyed 22 | 1 8 13 Melee 10 | . . 10 Guns 1 | 1 . . Cannons 1 | . 1 . AOE 7 | . 7 . Classes Destroyed 10 | 2 4 4 Worker 3 | . 2 1 Builder 1 | . . 1 Tunneler 2 | 2 . . Recycler 3 | . 2 1 Mechanic 1 | . . 1 Operator 1 | . . 1 Watcher 2 | . 1 1 Swarmer 5 | . 3 2 Grunt 16 | 1 5 10 Sentry 1 | . . 1 Best Kill Streak 8 | 3 8 5 Combat Bots Only 4 | 1 4 4 Max Kills in Single Turn 3 | 1 3 1 Gunslinging . | . . . Exploded 2 | . 2 . Melee 1 | . . 1 Uniques/NPCs Destroyed . | . . . Combat | -11 -10 -9 -------- Run | Scr Mat Mat Damage Taken 1975 | 42 462 1471 Core 540 | 8 132 400 Absorbed by Shields 125 | . . 125 Core Remaining (%) 70 | 96 44 . Volleys Fired 29 | 6 22 1 Largest 2 | 2 2 1 Hottest 200 | 80 200 56 Shots Fired 41 | 12 28 1 Gun 14 | 12 2 . Cannon 1 | . . 1 Launcher 12 | . 12 . Special 14 | . 14 . Kinetic 2 | . 2 . Thermal 20 | 6 14 . Explosive 12 | . 12 . Electromagnetic 7 | 6 . 1 Robot Hit Streak 15 | 10 15 . Robot Miss Streak 1 | 1 1 1 Penetration Max . | . . . Secondary Targets . | . . . Shots Hit Robots 89 | 10 21 58 Core Hits 37 | 5 19 13 Critical Hits . | . . . Critical Kills . | . . . Critical Parts Destroyed . | . . . Melee Attacks 66 | . . 66 Impact 66 | . . 66 Slashing . | . . . Piercing . | . . . Sneak Attacks 6 | . . 6 Combat Hostiles . | . . . Follow-up Attacks 6 | . . 6 Damage Inflicted 3094 | 166 948 1980 Guns 115 | 115 . . Cannons . | . . . Explosions 796 | 51 745 . Melee 1980 | . . 1980 Ramming . | . . . Kinetic . | . . . Thermal 309 | 106 203 . Explosive 745 | . 745 . Electromagnetic 60 | 60 . . Impact 1980 | . . 1980 Slashing . | . . . Piercing . | . . . Highest Corruption 1 | . . 1 Average Corruption 1 | . . 1 Corruption Purged . | . . . Effects 1 | . . 1 Message Errors 1 | . . 1 Overload Shots . | . . . Overflow Damage 395 | . 72 323 Projectiles . | . . . Explosions 72 | . 72 . Melee 323 | . . 323 Knockbacks 8 | . . 8 Impact 8 | . . 8 Kinetic . | . . . Secondary . | . . . Self-Inflicted Damage 77 | . 77 . Shots 3 | . 3 . Rammed . | . . . Targets Rammed . | . . . Kicked . | . . . Crushed . | . . . Highest Temperature 129 | 102 129 36 Average Temperature 44 | 43 58 12 Received Heat Transfer 1031 | 30 216 785 Siege Activations . | . . . Robots Corrupted . | . . . Combat Hostiles . | . . . Parts Fried 8 | . . 8 Impact Corruptions 19 | . . 19 Robots Melted . | . . . Combat Hostiles . | . . . Parts Melted . | . . . Heat Transferred 775 | 275 500 . Parts Sabotaged . | . . . Parts Stolen . | . . . Parts Stripped . | . . . Power Chain Reactions 1 | 1 . . Missiles Intercepted . | . . . Alert | -11 -10 -9 ------- Run | Scr Mat Mat Peak Influence 287 | 30 215 287 Initial 16 | . 16 5 Average 129 | 9 132 143 Maximum Alert Level 1 | . 1 1 Low Security (%) 61 | 100 50 63 Level 1 38 | . 49 36 Level 2 . | . . . Level 3 . | . . . Level 4 . | . . . Level 5 . | . . . High Security . | . . . Max Security . | . . . Squads Dispatched 2 | . . 2 Investigation . | . . . Extermination . | . . . Reinforcement 2 | . . 2 Assault . | . . . Garrison . | . . . Intercept . | . . . Construction Impeded . | . . . Haulers Reinforced . | . . . Stealth | -11 -10 -9 --------- Run | Scr Mat Mat Distress Signals 5 | . 2 3 Communications Jammed . | . . . Distress Signals . | . . . Times Spotted 39 | 1 10 28 Peak Tracking Total 9 | 1 4 9 Tactical Retreats 5 | . . 5 Traps | -11 -10 -9 ------- Run | Scr Mat Mat Traps Triggered 5 | . 3 2 Indirectly . | . . . Trap Hack Attempts . | . . . Triggered . | . . . Disarmed . | . . . Reprogrammed . | . . . Reused . | . . . Traps Extracted . | . . . Installed . | . . . Triggered . | . . . Machines | -11 -10 -9 ---------- Run | Scr Mat Mat Machines Disabled 2 | . 2 . Max in Single Turn 1 | . 1 . Machines Sabotaged . | . . . Garrisons Compromised . | . . . Overloaded Fab Kills . | . . . Fab Network Shutdowns . | . . . Hacking | -11 -10 -9 --------- Run | Scr Mat Mat Machines Accessed . | . . . Terminals . | . . . Fabricators . | . . . Repair Stations . | . . . Recycling Units . | . . . Scanalyzers . | . . . Garrison Access . | . . . Total Hacks . | . . . Successful . | . . . Failed . | . . . Catastrophic . | . . . Database Lockouts . | . . . Manual . | . . . Terminals . | . . . Fabricators . | . . . Repair Stations . | . . . Recycling Units . | . . . Scanalyzers . | . . . Garrison Access . | . . . Terminal Hacks . | . . . Fabricator Hacks . | . . . Repair Station Hacks . | . . . Recycling Unit Hacks . | . . . Scanalyzer . | . . . Garrison Access Hacks . | . . . Unauthorized Hacks . | . . . Terminals . | . . . Fabricators . | . . . Repair Stations . | . . . Recycling Units . | . . . Scanalyzers . | . . . Garrison Access . | . . . Data Cores Recovered . | . . . Used . | . . . Hacking Detections . | . . . Full Trace Events . | . . . Feedback Events . | . . . Feedback Blocked . | . . . Robot Schematics Acquired . | . . . Robots Built . | . . . Matter . | . . . Time . | . . . Total Robot Build Rating . | . . . Part Schematics Acquired . | . . . Parts Built . | . . . Matter . | . . . Time . | . . . Total Part Build Rating . | . . . Parts Repaired . | . . . Time . | . . . Parts Recycled . | . . . Recycled Matter . | . . . Retrieved Matter . | . . . Retrieved Components . | . . . Parts Scanalyzed . | . . . Part Schematics Acquired . | . . . Parts Damaged . | . . . Bothacking | -11 -10 -9 ------------ Run | Scr Mat Mat Used RIF Installer . | . . . Robots Hacked . | . . . Non-combat . | . . . Combat . | . . . Robot Hacks Applied . | . . . Relay Couplers Released . | . . . Robots Rewired . | . . . Allies Hacked . | . . . Hacks Repelled . | . . . Allies | -11 -10 -9 -------- Run | Scr Mat Mat Total Allies . | . . . Largest Group . | . . . Highest-Rated Group . | . . . Highest-Rated Ally . | . . . Total Orders . | . . . Ally Attacks . | . . . Total Damage . | . . . Kills . | . . . Allies Corrupted . | . . . Allies Melted . | . . . Intel | -11 -10 -9 ------- Run | Scr Mat Mat Robot Analysis Total . | . . . Derelict Logs Recovered . | . . . Drone Launches . | . . . Drone Recoveries . | . . . Exploration | -11 -10 -9 ------------- Run | Scr Mat Mat Turns Passed 1128 | 84 434 610 Spaces Moved 710 | 68 312 330 Core 42 | 19 14 9 Treads . | . . . Legs 520 | . 199 321 Wheels 148 | 49 99 . Hover . | . . . Flight . | . . . Fastest Speed 50 | 50 50 100 Average Speed 109 | 71 106 119 Slowest Speed 150 | 80 150 150 Overloaded Moves . | . . . Propulsion Burnouts . | . . . Robots Hopped . | . . . Cave-ins Triggered . | . . . Exploration Rate (%) 23 | 5 45 20 Regions Visited 2 Branch Regions . Pre-discovered Areas . | . . . Known Exits Taken . | . . . Unknown Exits Taken 2 | 1 1 . Scrap Searched . | . . . Spaces Dug . | . . . Terrain Destroyed 51 | . 51 . Melee . | . . . Projectile . | . . . AOE 51 | . 51 . Terrain Rammed . | . . . Walls Destroyed . | . . . Machines Disabled . | . . . Actions | -11 -10 -9 --------- Run | Scr Mat Mat Total 884 | 91 369 424 Wait 4 | . . 4 Move 708 | 67 311 330 Hop . | . . . Pick Up 38 | 9 17 12 Fast Attach . | . . . Attach 22 | 5 10 7 Detach . | . . . Swap 11 | 2 2 7 Drop 15 | 2 7 6 Fire 29 | 6 22 1 Melee 57 | . . 57 Ram . | . . . Kick . | . . . Crush . | . . . Escape Stasis . | . . . Rewire . | . . . Trap . | . . . Miscellaneous . | . . . Route ------- -11/Scrapyard -10/Materials (discovered 2 exits: [*Mat] / [*Min]) -9/Materials History --------- Turn | Location | Event 2 | -11/Scrapyard | Met Revision 17 42 | -11/Scrapyard | Discovered new exit (range 8) 85 | -11/Scrapyard | Entered Materials 222 | -10/Materials | Discovered new exit (range 13) 240 | -10/Materials | Lost 6 parts (1p2n3w) 310 | -10/Materials | Build established: Mutant 349 | -10/Materials | Core integrity fell below 50% 368 | -10/Materials | Discovered new exit (range 13) 519 | -10/Materials | Entered another Materials area 519 | -9/Materials | Evolved 2 slots: Power x1, Propulsion x1 908 | -9/Materials | Lost 3 parts (2p1u) 920 | -9/Materials | Core integrity fell below 50% 948 | -9/Materials | Lost 3 parts (3n) 1112 | -9/Materials | Core integrity fell below 20% 1129 | -9/Materials | Destroyed by S-10 Pest with Light Assault Rifle Last Messages --------------- G-34 Mercenary heat spikes uncontrollably. G-34 Mercenary overheating. ALERT: Hostiles spotted, dispatching reinforcements to Terminal M006. G-34 Mercenary heat spikes uncontrollably. G-34 Mercenary overheating. R-06 Scavenger destroyed. G-34 Mercenary overheating. G-34 Mercenary heat spikes uncontrollably. G-34 Mercenary overheating. G-34 Mercenary heat damages core (-6). G-34 Mercenary overheating. G-34 Mercenary heat damages core (-4). G-34 Mercenary overheating. G-34 Mercenary heat damages Sml. Laser. G-34 Mercenary overheating. G-34 Mercenary heat short circuits Sml. Laser. Hvy. Mace follow-up attack on S-10 Pest. S-10 Pest destroyed. G-34 Mercenary overheating. G-34 Mercenary heat spikes uncontrollably. Map ----- +----------------------------------------------------+ | ?????????????????????????????????????????????????? | | ?????????????????????????????????????????????????? | | ?????????????????????????????????????????????????? | | ?????????????????????????????????????????????????? | | ?????????????????????????????????????????????????? | | ?????????????????????????????????# ????????????? | | ?????????????????????????????????# ????????????? | | ?????????????????????????????????# ????????????? | | ?????????????????????????????????# ????????????? | | ?????????????????????????????????# #???????????? | | ?????????????????????????????????/ +???????????? | | ?????????????????????????????????# #???????????? | | ?????????????????????????????????# #???????????? | | ?????????????????????????????????# #???????????? | | ?????????????????????????????????# #???????????? | | ?????????????????????????????????# #???????????? | | ?????????????????????????????????# #???????????? | | ?????????????????????????????????+ ########????? | | ?????????????????????????????????# #????? | | ?????????????????????????????????# % ###### | | ?????????????????????????????????# # | | ?????????????????????????????????# #### # | | ?????????????????????????????????# = #??# # T | | ?????????????????????#######?????#*% #??#% # | | ?????????????????#+### %#######% #??# # | | ??????????????# r @[sY==* !%=#??# ## # | | ??????????????# *s[ * #??# ## # | | ??????????????# ==g #??# ## # | | ??????????????# #### #####Y ###??#= ## =# | | ??????????????# ?????#######???# #????#!%%## %# | | ???????????????????????????????# #????#^[^# | | ???????????????????????????????# #????#%^^# | | ???????????????????????????????# #????#==%! | | ???????????????????????????????# #????#===! | | ???????????????????????????????# #????#*! | | ???????????????????????????????# #????###### # | | ??????????????????????????????? ?????????# # | | ??????????????????????????????? ?????????# # | | ??????????????????????????????? ?????????# !# | | ??????????????????????????????? ?????????# %# | | ??????????????????????????????? ?????????# # | | ?????????????????????????????????????????????# =# | | ?????????????????????????????????????????????# + | | ?????????????????????????????????????????????# # | | ?????????????????????????????????????????????# # | | ?????????????????????????????????????????????# %# | | ?????????????????????????????????????????????# # | | ?????????????????????????????????????????????# # | | ?????????????????????????????????????????????# # | | ?????????????????????????????????????????????# # | +----------------------------------------------------+ Best States ------------- Heat Dissipation 28 Energy Generation 19 Energy Capacity 310 Matter Stores 300 Matter Capacity 300 Sight Range 16 Terrain Scan Density 10 Armor Coverage 300 Resistance: KI 20 Resistance: TH 20 Resistance: EX 20 Resistance: EM 20 Resistance: I 20 Resistance: S 20 Resistance: P 20 Evasion (%) 50 Offensive Hacking 10 Item Schematics ----------------- None Robot Schematics ------------------ None Fabricated ------------ Nothing Alien Tech Used ----------------- None Achievements -------------- None Challenges ------------ None Game ------ Seed ShockMasterRouter Manual? 0 Play Time 00:15:38 Cumulative 1.9 hours Start 2021.02.02 @ 15:55:09 End 2021.02.02 @ 16:07:46 Sessions 1 Manual Loads 0 Difficulty Adventurer Special Mode None Game No. 3 Rogue 0 Adventurer 3 Explorer 0 Win Type - Total 0 Types 0/0/0/0/0/0/0/0/0 Lore% 1 Gallery% 6 Achievement% 4 Wizard Run 0 Options --------- ASCII 0 Keyboard 0 Movement Mouse Keybinds 0 Fullscreen 2 Font 18/SmallcapsGlow Map View 76x50 Tactical HUD 0 Map Filters NONE Filters NONE Steam 1 RUN: 9de43325-0a18-4c14-a7db-7f4c505527ce